bitfinex-derivatives/quotes_BTCF0:USTF0_20240923
["timestamp","ask_amount","ask_price","bid_price","bid_amount"]
[1727050062163,0.004,63391.0,63390.0,0.439672]
[1727050062560,0.078867,63395.0,63390.0,0.439672]
[1727050062958,0.078868,63394.0,63390.0,0.439672]
[1727050063165,0.208861,63399.0,63390.0,0.3618]
[1727050063366,0.39456,63409.0,63398.0,0.078862]
[1727050063568,0.39456,63409.0,63404.0,0.3608]
[1727050064198,0.078854,63405.0,63404.0,0.3608]
[1727050065160,0.00917614,63408.0,63404.0,0.3608]
[1727050065361,0.013,63405.0,63404.0,0.3608]
[1727050066370,0.091854,63405.0,63404.0,0.3608]
[1727050067856,1.44696,63405.0,63390.0,0.0037]
[1727050068060,1.44696,63405.0,63387.0,0.0027]
[1727050068061,0.4908,63393.0,63387.0,0.0027]
[1727050068260,0.208875,63388.0,63387.0,0.0027]
[1727050068864,0.28775,63388.0,63387.0,0.0027]
[1727050069064,0.569675,63388.0,63387.0,0.0027]
[1727050069668,0.570675,63388.0,63387.0,0.0047]
[1727050070070,0.569675,63388.0,63387.0,0.0027]
[1727050070267,0.655479,63388.0,63387.0,0.0027]
[1727050070466,1.571009,63388.0,63374.0,0.08228219]
[1727050070670,0.3608,63375.0,63371.0,0.07858219]
[1727050071261,0.3608,63375.0,63372.0,0.07858219]
[1727050071468,0.3608,63375.0,63371.0,0.07858219]
[1727050071773,0.3618,63375.0,63372.0,0.18378825]
[1727050071974,0.3618,63375.0,63372.0,0.07858219]
[1727050072172,0.3618,63375.0,63373.0,0.07858219]
[1727050072370,0.001,63375.0,63373.0,0.43938219]
[1727050072773,0.078889,63377.0,63373.0,0.43938219]
[1727050073164,0.078889,63377.0,63373.0,0.3608]
[1727050073564,0.079891,63375.0,63373.0,0.44138219]
[1727050074271,0.439692,63374.0,63373.0,0.002]
[1727050075365,1.591984,63374.0,63373.0,0.002]
[1727050075569,1.591984,63374.0,63357.0,0.08228219]
[1727050075570,0.078894,63373.0,63357.0,0.08228219]
[1727050075882,0.078894,63373.0,63345.0,0.00236797]
[1727050075883,0.3608,63358.0,63354.0,0.07858219]
[1727050076261,0.3608,63358.0,63353.0,0.07858219]
[1727050076882,0.3608,63358.0,63357.0,0.003]
[1727050076883,0.4908,63358.0,63357.0,0.003]
[1727050077273,0.570712,63358.0,63357.0,0.003]
[1727050077574,0.4918,63358.0,63356.0,0.04713344]
[1727050077773,0.078915,63356.0,63342.0,0.07858219]
[1727050077968,0.078915,63356.0,63339.0,0.09402997]
[1727050077969,0.13,63343.0,63341.0,0.07858219]
[1727050078170,0.13,63343.0,63340.0,0.07858219]
[1727050078369,0.13,63343.0,63337.0,0.36184]
[1727050078370,0.208933,63341.0,63337.0,0.3608]
[1727050079580,0.209933,63341.0,63337.0,0.3608]
[1727050079968,0.079933,63341.0,63337.0,0.3608]
[1727050080273,0.001,63341.0,63337.0,0.3608]
[1727050080474,0.001,63341.0,63337.0,0.439738]
[1727050080684,0.001,63341.0,63337.0,0.3608]
[1727050081076,0.00799016,63341.0,63337.0,0.3608]
[1727050081275,0.001,63341.0,63337.0,0.3608]
[1727050081776,0.001,63341.0,63338.0,0.078937]
[1727050082170,0.001,63341.0,63337.0,0.3608]
[1727050082777,0.13,63342.0,63337.0,0.3608]
[1727050083076,0.07894,63336.0,63329.0,0.3608]
[1727050083276,0.13,63330.0,63329.0,0.3608]
[1727050083580,0.07894,63336.0,63329.0,0.3608]
[1727050083581,0.13,63331.0,63329.0,0.3608]
[1727050084173,0.13,63336.0,63329.0,0.3608]
[1727050085376,0.4552144,63338.0,63329.0,0.3608]
[1727050085586,0.4544144,63338.0,63330.0,0.078947]
[1727050086277,0.001,63336.0,63330.0,0.078947]
[1727050086579,0.001,63336.0,63333.0,0.078943]
[1727050086881,0.36865485,63338.0,63329.0,0.439748]
[1727050087073,0.36865485,63338.0,63330.0,0.078947]
[1727050087074,0.36965485,63338.0,63330.0,0.078947]
[1727050087580,0.131,63336.0,63332.0,0.078944]
[1727050087878,0.131,63336.0,63329.0,0.3608]
[1727050087879,0.001,63336.0,63329.0,0.3608]
[1727050088086,0.001,63336.0,63335.0,0.3608]
[1727050088279,0.131,63336.0,63330.0,0.078946]
[1727050088477,0.001,63336.0,63330.0,0.078946]
[1727050088671,0.13,63333.0,63330.0,0.078946]
[1727050089783,0.078947,63330.0,63326.0,0.0881]
[1727050090075,0.132,63333.0,63326.0,0.0881]
[1727050090874,0.001,63330.0,63326.0,0.0881]
[1727050092289,0.002,63330.0,63329.0,0.078948]
[1727050092588,0.001,63330.0,63329.0,0.078948]
[1727050092782,0.001,63330.0,63326.0,0.0881]
[1727050092978,0.001,63330.0,63327.0,0.07895]
[1727050093180,0.001,63330.0,63326.0,0.0881]
[1727050093181,0.13,63328.0,63326.0,0.0881]
[1727050093383,0.07470721,63328.0,63326.0,0.0881]
[1727050095686,0.07570721,63328.0,63326.0,0.0881]
[1727050096189,0.15565721,63328.0,63326.0,0.0881]
[1727050096384,0.13,63327.0,63326.0,0.0881]
[1727050097685,0.001,63327.0,63326.0,0.0881]
[1727050097887,0.001,63327.0,63326.0,0.167052]
[1727050098783,0.132,63327.0,63326.0,0.0881]
[1727050100390,0.002,63327.0,63326.0,0.0881]
[1727050100595,0.078953,63325.0,63323.0,0.07858219]
[1727050100887,0.078957,63322.0,63317.0,0.25328219]
[1727050101094,0.13,63318.0,63317.0,0.25328219]
[1727050101386,0.078957,63322.0,63317.0,0.25328219]
[1727050101387,0.208957,63322.0,63317.0,0.75395515]
[1727050101589,0.208957,63322.0,63319.0,0.07896]
[1727050101590,0.13,63322.0,63319.0,0.07896]
[1727050101789,0.13,63322.0,63318.0,0.43923975]
[1727050101983,0.13,63322.0,63321.0,0.078958]
[1727050102378,0.13,63322.0,63321.0,0.15739775]
[1727050102782,0.208953,63325.0,63321.0,0.07843975]
[1727050102988,0.001,63322.0,63321.0,0.078958]
[1727050103187,0.001,63325.0,63324.0,0.078955]
[1727050103388,0.078947,63330.0,63325.0,0.078953]
[1727050103583,0.07895,63328.0,63325.0,0.07854699]
[1727050103794,0.208953,63326.0,63325.0,0.0785513]
[1727050103982,0.078954,63325.0,63321.0,0.17298797]
[1727050104296,0.078954,63325.0,63324.0,0.09402997]
[1727050104497,0.03945439,63325.0,63324.0,0.19903552]
[1727050104792,0.13,63326.0,63325.0,0.078953]
[1727050104994,0.13,63326.0,63325.0,0.18395855]
[1727050105201,0.208952,63326.0,63325.0,0.10600555]
[1727050105698,0.13992231,63330.0,63325.0,0.10600555]
[1727050105891,0.209947,63330.0,63328.0,0.078949]
[1727050106087,0.13,63330.0,63329.0,0.27685355]
[1727050106397,0.13,63330.0,63329.0,0.19790555]
[1727050106398,0.00695804,63330.0,63329.0,0.19790555]
[1727050106591,0.208947,63330.0,63329.0,0.19790555]
[1727050106897,0.209947,63330.0,63329.0,0.29238827]
[1727050107287,0.287894,63330.0,63329.0,0.10500555]
[1727050107495,0.570747,63330.0,63329.0,0.10500555]
[1727050107685,0.440747,63330.0,63329.0,0.10500555]
[1727050107992,0.570747,63330.0,63329.0,0.10500555]
[1727050108694,0.571747,63330.0,63329.0,0.10500555]
[1727050109284,0.570747,63330.0,63329.0,0.10500555]
[1727050109486,0.571747,63330.0,63329.0,0.1060762]
[1727050110886,0.571747,63330.0,63329.0,0.18490889]
[1727050111282,0.571747,63330.0,63329.0,0.1060762]
[1727050111987,0.572747,63330.0,63329.0,0.1050762]
[1727050112588,0.47372,63329.0,63315.0,0.10540164]
[1727050112787,0.47372,63329.0,63308.0,0.1453882]
[1727050112788,0.13,63316.0,63308.0,0.0037]
[1727050112998,0.9651,63315.0,63313.0,1.0]
[1727050113493,0.47384,63314.0,63313.0,1.0]
[1727050113893,1.07384,63314.0,63313.0,1.0]
[1727050114296,1.231774,63314.0,63313.0,0.8629]
[1727050114693,1.152807,63314.0,63313.0,0.8629]
[1727050114999,0.078967,63314.0,63313.0,0.83443854]
[1727050115185,0.208967,63314.0,63313.0,0.83443854]
[1727050116195,0.21592051,63314.0,63313.0,0.83443854]
[1727050116393,0.13695351,63314.0,63313.0,0.83443854]
[1727050116710,0.00695351,63314.0,63313.0,0.83443854]
[1727050116914,0.13,63315.0,63313.0,0.83443854]
[1727050117317,0.13,63315.0,63314.0,0.1797]
[1727050117912,0.00084,63319.0,63318.0,0.078962]
[1727050118219,0.3608,63325.0,63318.0,0.078962]
[1727050118518,0.13,63322.0,63318.0,0.078962]
[1727050119218,0.13,63322.0,63319.0,0.07896]
[1727050119804,0.13,63322.0,63314.0,0.708667]
[1727050120017,0.13,63322.0,63316.0,0.078965]
[1727050120207,0.136,63322.0,63316.0,0.078965]
[1727050120411,0.136,63322.0,63316.0,0.3608]
[1727050120608,0.006,63322.0,63321.0,0.078958]
[1727050121222,0.009,63322.0,63321.0,0.078958]
[1727050121815,0.01,63322.0,63321.0,0.078958]
[1727050122023,0.013,63322.0,63321.0,0.078958]
[1727050122321,0.145,63322.0,63319.0,0.3608]
[1727050123014,0.078964,63317.0,63314.0,0.2679]
[1727050123212,0.078965,63316.0,63314.0,0.2679]
[1727050123622,0.13,63317.0,63313.0,0.83547854]
[1727050123623,0.078966,63315.0,63313.0,0.83547854]
[1727050123828,0.078966,63315.0,63313.0,0.76365783]
[1727050124128,0.078966,63315.0,63313.0,0.75803083]
[1727050124320,0.631774,63314.0,63313.0,0.7040917]
[1727050124515,0.631774,63314.0,63313.0,0.27514454]
[1727050124812,1.2395693,63314.0,63313.0,0.26814454]
[1727050125610,1.2465693,63314.0,63313.0,0.26814454]
[1727050126019,1.2505693,63314.0,63313.0,0.25554454]
[1727050126419,1.242774,63314.0,63313.0,0.23754454]
[1727050126615,1.242774,63314.0,63313.0,0.22654454]
[1727050126819,1.25080952,63314.0,63313.0,0.21654454]
[1727050127222,1.242774,63314.0,63313.0,0.20954454]
[1727050127913,1.2507392,63314.0,63313.0,0.20954454]
[1727050128313,0.0979322,63314.0,63313.0,0.20954454]
[1727050128526,0.078982,63302.0,63301.0,0.0037]
[1727050128715,0.078982,63302.0,63296.0,0.0894]
[1727050128716,0.208982,63302.0,63296.0,0.0894]
[1727050129019,0.3608,63303.0,63296.0,0.0894]
[1727050130217,0.001,63302.0,63296.0,0.0894]
[1727050130419,0.001,63302.0,63299.0,0.078986]
[1727050130727,0.002,63302.0,63299.0,0.078986]
[1727050130924,0.002,63302.0,63296.0,0.0894]
[1727050131226,0.002,63302.0,63298.0,0.3608]
[1727050131916,0.131,63302.0,63296.0,0.0894]
[1727050132117,0.13,63297.0,63296.0,0.0894]
[1727050132426,0.569788,63297.0,63296.0,0.0894]
[1727050133414,0.439788,63297.0,63296.0,0.0894]
[1727050134327,0.3618,63297.0,63296.0,0.0894]
[1727050135316,0.3628,63297.0,63296.0,0.0894]
[1727050136428,0.002,63297.0,63296.0,0.168389]
[1727050136816,0.3608,63302.0,63296.0,0.0894]
[1727050137023,0.3608,63302.0,63298.0,0.078986]
[1727050138129,0.3618,63302.0,63298.0,0.078986]
[1727050138625,0.3618,63302.0,63296.0,0.0894]
[1727050138626,0.441782,63302.0,63296.0,0.0894]
[1727050138827,0.3628,63302.0,63298.0,0.078987]
[1727050139030,0.4928,63302.0,63296.0,0.0894]
[1727050139215,0.078986,63299.0,63296.0,0.0894]
[1727050140217,0.078999,63289.0,63287.0,0.09434807]
[1727050140415,0.078998,63289.0,63288.0,0.0943]
[1727050140716,0.07467129,63291.0,63284.0,0.00108]
[1727050140717,0.079003,63285.0,63284.0,0.00108]
[1727050140922,0.079003,63285.0,63277.0,0.0943]
[1727050140923,0.07901,63280.0,63277.0,0.0943]
[1727050141122,0.079012,63278.0,63277.0,0.0943]
[1727050141325,0.3608,63279.0,63263.0,0.008]
[1727050141326,0.07902,63272.0,63264.0,0.17337707]
[1727050141526,0.13,63270.0,63261.0,0.3608]
[1727050141727,0.13,63265.0,63261.0,0.3608]
[1727050142318,0.13,63265.0,63257.0,0.1769]
[1727050142530,0.13,63258.0,63247.0,0.3608]
[1727050142836,0.3608,63260.0,63248.0,0.0891]
[1727050142837,0.13,63252.0,63248.0,0.0891]
[1727050143219,0.13,63256.0,63248.0,0.0891]
[1727050144321,0.13,63252.0,63248.0,0.0891]
[1727050144631,0.00781148,63256.0,63254.0,0.079041]
[1727050144632,0.001,63256.0,63254.0,0.079041]
[1727050144932,0.3608,63258.0,63253.0,0.13]
[1727050144933,0.3618,63258.0,63253.0,0.13]
[1727050145127,0.00694962,63263.0,63259.0,0.079035]
[1727050145327,0.3608,63266.0,63259.0,0.079035]
[1727050145632,0.00776406,63268.0,63265.0,0.3608]
[1727050145823,0.00776406,63268.0,63266.0,0.091]
[1727050146025,0.00776406,63268.0,63267.0,0.079026]
[1727050146227,0.00938899,63271.0,63267.0,0.079026]
[1727050146426,0.00938899,63271.0,63269.0,0.079023]
[1727050146643,0.0008,63275.0,63270.0,0.13]
[1727050146827,0.3608,63282.0,63275.0,0.079015]
[1727050147025,0.079006,63283.0,63276.0,0.079014]
[1727050147223,0.3952,63284.0,63277.0,0.079013]
[1727050147430,0.40199823,63284.0,63277.0,0.079013]
[1727050147631,0.40199823,63284.0,63278.0,0.079012]
[1727050147838,0.001,63275.0,63274.0,0.439817]
[1727050148132,0.57216779,63291.0,63274.0,1.56492]
[1727050148341,0.36317179,63291.0,63280.0,0.3608]
[1727050148527,0.36317179,63291.0,63289.0,0.078998]
[1727050148937,0.36317179,63291.0,63290.0,0.0897]
[1727050149449,0.00084,63297.0,63295.0,0.07899]
[1727050149625,0.00801717,63304.0,63296.0,0.3608]
[1727050149938,0.078979,63304.0,63303.0,0.3608]
[1727050150137,0.08680555,63304.0,63303.0,0.3608]
[1727050150927,0.09080555,63304.0,63303.0,0.3608]
[1727050151734,0.09080555,63304.0,63303.0,0.3618]
[1727050151735,0.09780555,63304.0,63303.0,0.3618]
[1727050152834,0.11180555,63304.0,63303.0,0.3628]
[1727050153339,0.1188331,63304.0,63303.0,0.3628]
[1727050153541,0.1188331,63304.0,63296.0,0.3608]
[1727050153542,0.078988,63298.0,63296.0,0.3608]
[1727050153740,0.19,63297.0,63296.0,0.3608]
[1727050154436,0.268988,63297.0,63296.0,0.3608]
[1727050155536,0.268988,63297.0,63296.0,0.3618]
[1727050156029,0.268988,63297.0,63296.0,0.3608]
[1727050156234,0.274988,63297.0,63296.0,0.3618]
[1727050156539,0.28579932,63297.0,63296.0,0.3618]
[1727050158540,0.20681132,63297.0,63296.0,0.3618]
[1727050158743,0.01681132,63297.0,63296.0,0.3618]
[1727050164848,0.01681132,63297.0,63296.0,0.440789]
[1727050165039,0.01681132,63297.0,63296.0,0.630789]
[1727050165240,0.0182,63318.0,63297.0,0.078988]
[1727050165440,0.078966,63315.0,63314.0,0.3608]
[1727050166240,0.00864704,63319.0,63314.0,0.3608]
[1727050166451,0.005,63318.0,63314.0,0.3608]
[1727050166652,0.005,63318.0,63317.0,0.078963]
[1727050166951,0.083962,63318.0,63315.0,0.0892]
[1727050167145,0.083962,63318.0,63317.0,0.3608]
[1727050167348,0.005,63318.0,63317.0,0.3608]
[1727050167754,0.005,63318.0,63317.0,0.439763]
[1727050168553,0.014,63319.0,63318.0,0.078962]
[1727050168860,0.014,63319.0,63318.0,0.439762]
[1727050169158,0.014,63319.0,63318.0,0.913562]
[1727050169343,0.00834969,63320.0,63319.0,0.078961]
[1727050169543,0.078947,63330.0,63324.0,0.078954]
[1727050169744,0.078947,63330.0,63328.0,0.3608]
[1727050170047,0.00236951,63332.0,63329.0,0.3608]
[1727050170255,0.01085374,63332.0,63329.0,0.535747]
[1727050170552,0.01085374,63332.0,63329.0,0.4568]
[1727050170553,0.00236951,63332.0,63329.0,0.4568]
[1727050170744,0.00236951,63332.0,63331.0,0.078946]
[1727050172455,0.01636951,63332.0,63331.0,0.078946]
[1727050172656,0.01636951,63332.0,63331.0,0.168446]
[1727050172978,0.02536951,63332.0,63331.0,0.168446]
[1727050173351,0.02436951,63332.0,63331.0,0.169446]
[1727050173555,0.01536951,63332.0,63331.0,0.169446]
[1727050173758,0.02636951,63332.0,63331.0,0.170446]
[1727050176662,0.15636951,63332.0,63331.0,0.0915]
[1727050176961,1.38793951,63332.0,63331.0,0.002]
[1727050177159,0.47372,63331.0,63319.0,0.3608]
[1727050177360,0.20896,63320.0,63319.0,0.3608]
[1727050178549,0.078975,63308.0,63307.0,0.3608]
[1727050178746,0.21680127,63308.0,63307.0,0.3608]
[1727050179962,0.21880127,63308.0,63307.0,0.3608]
[1727050180157,0.002,63308.0,63307.0,0.3608]
[1727050180554,0.008,63308.0,63307.0,0.3618]
[1727050180773,0.008,63308.0,63307.0,0.4572]
[1727050180961,0.008,63308.0,63307.0,0.536176]
[1727050181263,0.008,63308.0,63307.0,0.535176]
[1727050181264,0.005,63308.0,63307.0,0.535176]
[1727050181571,0.007,63308.0,63307.0,0.535176]
[1727050181868,0.00839767,63318.0,63312.0,0.07897]
[1727050182050,0.19,63323.0,63315.0,0.3608]
[1727050182252,0.078965,63316.0,63315.0,0.3608]
[1727050183055,0.19,63318.0,63310.0,0.3608]
[1727050183261,0.078971,63311.0,63310.0,0.3608]
[1727050183760,0.078971,63311.0,63302.0,0.3608]
[1727050183962,0.078974,63309.0,63302.0,0.3608]
[1727050184357,0.19,63313.0,63308.0,0.3608]
[1727050184658,0.19,63318.0,63308.0,0.3608]
[1727050185250,0.078966,63315.0,63308.0,0.3608]
[1727050185449,0.078966,63315.0,63314.0,0.3608]
[1727050185662,0.078961,63319.0,63314.0,0.3608]
[1727050186262,0.00833987,63325.0,63314.0,0.3608]
[1727050186458,0.078955,63324.0,63323.0,0.3608]
[1727050187664,0.090955,63324.0,63323.0,0.3618]
[1727050188062,0.16991,63324.0,63323.0,0.3618]
[1727050188265,0.18091,63324.0,63323.0,0.3618]
[1727050189067,0.18091,63324.0,63323.0,0.001]
[1727050190568,0.101955,63324.0,63323.0,0.001]
[1727050190973,0.18091,63324.0,63323.0,0.001]
[1727050193372,0.259865,63324.0,63323.0,0.001]
[1727050194066,0.07897,63312.0,63311.0,0.0037]
[1727050194266,0.07897,63312.0,63309.0,0.3608]
[1727050194267,0.078972,63310.0,63309.0,0.3608]
[1727050196664,0.078972,63310.0,63309.0,0.3628]
[1727050196966,0.078972,63310.0,63309.0,0.3668]
[1727050197577,0.347944,63310.0,63309.0,0.004]
[1727050197876,0.347944,63310.0,63304.0,0.06259044]
[1727050197877,0.078978,63305.0,63304.0,0.04717718]
[1727050198071,0.078979,63304.0,63303.0,0.3608]
[1727050199979,0.078987,63298.0,63296.0,0.04801718]
[1727050200282,0.4908,63297.0,63286.0,0.04717718]
[1727050200467,0.4908,63297.0,63280.0,0.0962]
[1727050200468,0.13,63290.0,63284.0,0.04717718]
[1727050200667,0.079004,63284.0,63283.0,0.04717718]
[1727050200870,0.079004,63284.0,63280.0,0.15449044]
[1727050200871,0.079008,63281.0,63280.0,0.0919]
[1727050202276,0.079008,63281.0,63274.0,0.23287718]
[1727050202277,0.079015,63276.0,63274.0,0.23287718]
[1727050202464,0.19,63284.0,63274.0,0.1857]
[1727050202465,0.5508,63284.0,63274.0,0.1857]
[1727050202668,0.5508,63284.0,63274.0,0.5465]
[1727050203075,0.5508,63284.0,63274.0,0.1857]
[1727050203076,0.001,63281.0,63274.0,0.1857]
[1727050203277,0.19,63278.0,63270.0,0.04717718]
[1727050203477,0.19,63278.0,63269.0,0.0919]
[1727050203866,0.079021,63271.0,63269.0,0.0919]
[1727050204074,0.079022,63270.0,63269.0,0.0919]
[1727050205371,0.079021,63271.0,63266.0,0.0951]
[1727050205682,0.079026,63267.0,63266.0,0.0951]
[1727050206283,0.19798235,63273.0,63266.0,0.0951]
[1727050206284,0.00798235,63273.0,63266.0,0.6459]
[1727050206585,0.36924381,63278.0,63269.0,0.003]
[1727050206776,0.079019,63273.0,63269.0,0.003]
[1727050206976,0.08683446,63273.0,63269.0,0.003]
[1727050207178,0.36924381,63278.0,63266.0,0.45674]
[1727050207479,0.3608,63284.0,63277.0,0.5508]
[1727050207685,0.36912363,63284.0,63278.0,0.092]
[1727050207873,0.36912363,63284.0,63280.0,0.079009]
[1727050208075,0.36912363,63284.0,63281.0,0.079008]
[1727050208271,0.36912363,63284.0,63282.0,0.0946]
[1727050208677,0.00832363,63284.0,63282.0,0.0946]
[1727050208881,0.3608,63295.0,63282.0,0.173607]
[1727050209085,0.01096104,63291.0,63288.0,0.3608]
[1727050209287,0.3608,63295.0,63288.0,0.3608]
[1727050209980,0.078998,63289.0,63288.0,0.3608]
[1727050210571,0.079005,63284.0,63282.0,0.0946]
[1727050210773,0.079005,63284.0,63283.0,0.3608]
[1727050210984,0.079006,63283.0,63279.0,0.0903]
[1727050211378,0.079009,63280.0,63279.0,0.0903]
[1727050212275,0.079011,63279.0,63278.0,0.36164]
[1727050212478,0.079011,63279.0,63270.0,0.0871]
[1727050212479,0.079012,63278.0,63271.0,0.3608]
[1727050212680,0.079018,63273.0,63271.0,0.3608]
[1727050213781,0.19,63279.0,63271.0,0.3608]
[1727050213984,0.079017,63274.0,63271.0,0.3608]
[1727050214281,0.19,63279.0,63271.0,0.3608]
[1727050214282,0.08706788,63273.0,63271.0,0.3618]
[1727050214489,0.00804888,63273.0,63271.0,0.3618]
[1727050214688,0.19,63279.0,63271.0,0.3618]
[1727050214883,0.079016,63275.0,63271.0,0.3618]
[1727050215286,0.00773347,63274.0,63271.0,0.3618]
[1727050215477,0.001,63278.0,63271.0,0.3618]
[1727050215677,0.079011,63279.0,63277.0,0.3608]
[1727050215891,0.080011,63279.0,63277.0,0.3608]
[1727050216286,0.00860085,63284.0,63277.0,0.3608]
[1727050216287,0.079012,63278.0,63277.0,0.3608]
[1727050217888,0.079019,63272.0,63271.0,0.3618]
[1727050218093,0.19772842,63273.0,63271.0,0.3608]
[1727050218289,0.19,63273.0,63271.0,0.3608]
[1727050218492,0.269019,63273.0,63271.0,0.3608]
[1727050218985,0.19795694,63273.0,63271.0,0.3608]
[1727050219186,0.00795694,63273.0,63271.0,0.3608]
[1727050219391,0.198,63278.0,63271.0,0.3608]
[1727050219588,0.079019,63272.0,63271.0,0.3608]
[1727050219787,0.079019,63272.0,63271.0,0.3618]
[1727050220092,0.079019,63272.0,63271.0,0.001]
[1727050220497,0.079023,63269.0,63268.0,0.4517]
[1727050220698,0.079023,63269.0,63268.0,0.4509]
[1727050220899,0.079023,63269.0,63268.0,0.3608]
[1727050221297,0.079029,63264.0,63263.0,0.0953]
[1727050221802,0.079031,63263.0,63262.0,0.3608]
[1727050223094,0.07904,63256.0,63254.0,0.40797718]
[1727050223595,0.19,63259.0,63254.0,0.3608]
[1727050223596,0.079041,63255.0,63254.0,0.3608]
[1727050224695,0.080041,63255.0,63254.0,0.3658]
[1727050224898,0.19,63255.0,63254.0,0.3658]
[1727050225196,0.269041,63255.0,63254.0,0.3658]
[1727050225685,0.001,63256.0,63254.0,0.3668]
[1727050226289,0.001,63256.0,63255.0,0.4557]
[1727050226597,0.079021,63271.0,63262.0,0.079031]
[1727050226798,0.079021,63271.0,63267.0,0.3608]
[1727050226996,0.19,63275.0,63267.0,0.3608]
[1727050226997,0.01099895,63269.0,63267.0,0.3608]
[1727050227191,0.0023725,63269.0,63267.0,0.3608]
[1727050227889,0.37735359,63273.0,63267.0,0.3608]
[1727050227890,0.36952791,63273.0,63267.0,0.3568]
[1727050228205,0.002,63269.0,63268.0,0.079024]
[1727050228902,0.36952791,63273.0,63272.0,0.079019]
[1727050229203,0.3608,63273.0,63272.0,0.079019]
[1727050230296,0.3658,63273.0,63272.0,0.14199786]
[1727050231094,0.3658,63273.0,63272.0,0.079019]
[1727050231095,0.008,63273.0,63272.0,0.079019]
[1727050232696,0.008,63273.0,63272.0,0.15765394]
[1727050233400,0.079002,63286.0,63272.0,1.1754036]
[1727050233598,0.269014,63276.0,63275.0,0.3608]
[1727050235303,0.2773659,63276.0,63275.0,0.35153]
[1727050235604,0.2853659,63276.0,63275.0,0.35253]
[1727050236115,0.0163519,63276.0,63275.0,0.3997661]
[1727050236402,0.0223519,63276.0,63275.0,0.35353]
[1727050236903,0.0223519,63276.0,63275.0,0.432546]
[1727050238105,0.0223519,63276.0,63275.0,0.51126428]
[1727050238308,0.0223519,63276.0,63275.0,0.61235195]
[1727050238607,0.0223519,63276.0,63275.0,0.53363367]
[1727050238795,0.014,63276.0,63275.0,0.53363367]
[1727050239304,0.19237116,63292.0,63279.0,0.07901]
[1727050239605,0.079003,63285.0,63284.0,0.04723477]
[1727050239794,0.079001,63287.0,63284.0,0.04723477]
[1727050239996,0.40367525,63290.0,63286.0,0.079002]
[1727050240304,0.48267225,63290.0,63289.0,0.3608]
[1727050240604,0.48367225,63290.0,63289.0,0.3608]
[1727050242605,0.48967225,63290.0,63289.0,0.001]
[1727050242905,0.48867225,63290.0,63289.0,0.001]
[1727050243211,0.49267225,63290.0,63289.0,0.001]
[1727050243596,0.41367525,63290.0,63289.0,0.001]
[1727050245005,0.41367525,63290.0,63289.0,0.3618]
[1727050245190,0.41367525,63290.0,63289.0,0.48802968]
[1727050245395,0.41367525,63290.0,63289.0,0.48799572]
[1727050246195,0.01831525,63290.0,63289.0,0.48799572]
[1727050246402,0.19,63303.0,63289.0,0.48799572]
[1727050246403,0.078981,63303.0,63289.0,1.6258]
[1727050246704,0.439771,63311.0,63289.0,1.6258]
[1727050246705,0.4478044,63306.0,63297.0,0.439788]
[1727050247001,0.3688264,63306.0,63297.0,0.439788]
[1727050247599,0.004,63303.0,63297.0,0.439788]
[1727050248191,0.004,63303.0,63302.0,0.078982]
[1727050248596,0.004,63303.0,63302.0,0.439782]
[1727050248909,0.01,63303.0,63302.0,0.3608]
[1727050249099,0.006,63303.0,63302.0,0.3608]
[1727050249295,0.078978,63305.0,63302.0,0.3608]
[1727050249495,0.01,63303.0,63302.0,0.3618]
[1727050250204,0.01,63303.0,63302.0,0.441782]
[1727050250794,0.01,63303.0,63302.0,1.515702]
[1727050250997,0.001,63303.0,63302.0,0.914702]
[1727050251213,0.001,63303.0,63302.0,0.440782]
[1727050251409,0.001,63303.0,63302.0,0.439782]
[1727050251605,0.27699906,63306.0,63302.0,0.3668]
[1727050251907,0.268977,63306.0,63302.0,0.3668]
[1727050252109,0.00807343,63307.0,63302.0,0.3668]
[1727050252403,0.19,63313.0,63303.0,0.07898]
[1727050252404,0.078971,63311.0,63303.0,0.07898]
[1727050252607,0.078971,63311.0,63304.0,0.0943]
[1727050252808,0.078972,63310.0,63304.0,0.0943]
[1727050254210,0.00869294,63313.0,63304.0,0.0963]
[1727050254512,0.078969,63313.0,63305.0,0.078978]
[1727050255311,0.078969,63313.0,63306.0,0.078977]
[1727050255521,0.078971,63311.0,63304.0,0.0983]
[1727050255701,0.078971,63311.0,63304.0,0.177279]
[1727050256111,0.078971,63311.0,63308.0,0.3608]
[1727050258007,0.10318597,63315.0,63308.0,0.3608]
[1727050258215,0.078973,63309.0,63308.0,0.3608]
[1727050258602,0.078973,63309.0,63302.0,0.439781]
[1727050258603,0.00783622,63309.0,63302.0,0.3616]
[1727050258822,0.078981,63303.0,63302.0,0.3608]
[1727050259214,0.0867619,63303.0,63302.0,0.3608]
[1727050260110,0.0877619,63303.0,63302.0,0.3668]
[1727050260310,0.2177619,63303.0,63302.0,0.3668]
[1727050261116,0.2177619,63303.0,63302.0,0.3728]
[1727050261710,0.2217619,63303.0,63302.0,0.3668]
[1727050261912,1.58490043,63303.0,63291.0,0.36172]
[1727050262209,0.13,63295.0,63291.0,0.3608]
[1727050262411,0.078994,63292.0,63291.0,0.3608]
[1727050263214,0.078994,63292.0,63291.0,0.3688]
[1727050263917,0.13,63295.0,63291.0,0.3688]
[1727050264123,0.078986,63299.0,63291.0,0.3688]
[1727050264412,0.14718043,63303.0,63298.0,0.3608]
[1727050264413,0.0087809,63303.0,63298.0,0.3608]
[1727050264613,0.01749563,63303.0,63299.0,0.078985]
[1727050264818,0.001,63303.0,63299.0,0.180985]